fUST/lending_fUST_20260107
["ID","MTS","AMOUNT","RATE_DAILY","PERIOD"]
[400592226,1767736246657,-151.0,0.00030137,28]
[400592228,1767736246666,-1000.0,0.00030156,14]
[400592231,1767736246676,-1000.0,0.00030178,14]
[400592245,1767736246800,-550.64,0.000302,2]
[400592247,1767736246811,-1000.0,0.00030201,14]
[400592249,1767736246820,-10000.0,0.00030204,14]
[400592251,1767736246829,-1000.0,0.00030223,14]
[400592253,1767736246839,-1000.0,0.00030245,14]
[400592255,1767736246849,-800.0,0.00030258,2]
[400592257,1767736246858,-1000.0,0.00030267,14]
[400592259,1767736246868,-163.0,0.00030274,39]
[400592261,1767736246877,-1000.0,0.0003029,14]
[400592263,1767736246886,-9931.15793158,0.00030299,2]
[400592265,1767736246896,-10000.0,0.000303,30]
[400592267,1767736246905,-3683.82290581,0.00030309,30]
[400592269,1767736246915,-10000.0,0.00030311,2]
[400592271,1767736246924,-574.71139926,0.00030312,14]
[400592273,1767736246933,-357.37586378,0.00030312,7]
[400592275,1767736246945,-166.0,0.00030312,7]
[400592277,1767736246954,-166.0,0.00030312,7]
[400592279,1767736246964,-152.0,0.00030312,7]
[400592280,1767736246973,-152.0,0.00030312,7]
[400592283,1767736246983,-166.0,0.00030312,7]
[400592284,1767736246993,-152.0,0.00030312,7]
[400592286,1767736247002,-163.0,0.00030312,7]
[400592288,1767736247011,-152.0,0.00030312,7]
[400592290,1767736247022,-163.0,0.00030312,7]
[400592292,1767736247032,-152.0,0.00030312,7]
[400592294,1767736247041,-152.0,0.00030312,7]
[400592296,1767736247050,-152.0,0.00030312,7]
[400592298,1767736247059,-185.22374852,0.00030312,7]
[400592300,1767736247068,-153.76138875,0.00030312,7]
[400592302,1767736247078,-152.0,0.00030312,7]
[400592304,1767736247088,-152.0,0.00030312,7]
[400592306,1767736247098,-152.0,0.00030312,7]
[400592308,1767736247107,-152.0,0.00030312,7]
[400592310,1767736247116,-284.0,0.00030312,7]
[400592312,1767736247125,-2145.0,0.00030315,2]
[400592314,1767736247135,-628.0,0.00030315,2]
[400592316,1767736247145,-2000.0,0.00030387,7]
[400592318,1767736247155,-507.0,0.00030411,14]
[400592320,1767736247164,-500.0,0.00030452,31]
[400592322,1767736247175,-500.0,0.00030452,31]
[400592324,1767736247184,-500.0,0.00030452,31]
[400592326,1767736247194,-500.0,0.00030452,31]
[400592328,1767736247203,-363.862086,0.00030452,31]
[400592330,1767736247213,-363.862086,0.00030452,31]
[400592332,1767736247224,-363.862086,0.00030452,31]
[400592334,1767736247233,-363.862086,0.00030452,31]
[400592336,1767736247243,-2612.25,0.000305,14]
[400592338,1767736247253,-7376.3163791,0.00030533,2]
[400592340,1767736247262,-376.8200359,0.00030548,30]
[400592342,1767736247272,-695.0,0.00030635,30]
[400592344,1767736247283,-485.0,0.00030635,30]
[400592346,1767736247292,-563.0,0.00030635,30]
[400592348,1767736247301,-151.0,0.00030684,31]
[400592350,1767736247310,-409.331105,0.00030684,31]
[400592352,1767736247320,-409.331105,0.00030684,31]
[400592354,1767736247329,-409.331105,0.00030684,31]
[400592356,1767736247338,-409.331105,0.00030684,31]
[400592358,1767736247348,-1297.73266776,0.00030685,5]
[400592360,1767736247358,-507.0,0.00030685,14]
[400592362,1767736247368,-750.0,0.00030685,5]
[400592364,1767736247377,-750.0,0.00030685,5]
[400592366,1767736247386,-151.0,0.000307,31]
[400592368,1767736247394,-151.0,0.000307,31]
[400592370,1767736247404,-151.0,0.000307,31]
[400592372,1767736247413,-151.0,0.000307,31]
[400592374,1767736247422,-151.0,0.000307,31]
[400592376,1767736247431,-300.0,0.0003074,2]
[400592377,1767736247442,-635.31342094,0.00030847,2]
[400592378,1767736247451,-2538.71243008,0.00030847,2]
[400592379,1767736247461,-151.0,0.00030904,31]
[400592380,1767736247471,-151.0,0.00030904,31]
[400592381,1767736247480,-151.0,0.00030904,31]
[400592382,1767736247489,-151.0,0.00030904,31]
[400592383,1767736247500,-7068.710125,0.00030904,4]
[400592384,1767736247509,-787.72,0.00030958,30]
[400592385,1767736247518,-507.0,0.00030959,14]
[400592386,1767736247527,-311.9987942,0.00030959,30]
[400592387,1767736247537,-375.2342335,0.00030959,30]
[400592388,1767736247546,-204.47021326,0.00031,120]
[400592389,1767736247555,-188.78673029,0.00031,120]
[400592391,1767736247565,-172.60461299,0.00031,120]
[400592393,1767736247573,-163.4725449,0.00031,120]
[400592395,1767736247583,-198.36643639,0.00031,120]
[400592397,1767736247592,-172.33135591,0.00031,120]
[400592399,1767736247602,-194.20318295,0.00031,120]
[400592401,1767736247612,-185.65429275,0.00031,120]
[400592403,1767736247622,-1202.74496589,0.00031,120]
[400592405,1767736247631,-163.65081324,0.00031,120]
[400592407,1767736247640,-1019.0,0.00031,7]
[400592409,1767736247650,-1041.66666667,0.00031,30]
[400592411,1767736247660,-240.04,0.000311,7]
[400592413,1767736247669,-284.75,0.000311,7]
[400592415,1767736247679,-254.5,0.00031186,4]
[400592417,1767736247689,-507.0,0.00031233,14]
[400592419,1767736247698,-850.0,0.00031233,5]
[400592421,1767736247707,-2000.0,0.00031261,7]
[400592423,1767736247717,-2846.21,0.000314,7]
[400592425,1767736247727,-151.0,0.00031477,31]
[400592427,1767736247736,-151.0,0.00031477,31]
[400592429,1767736247745,-151.0,0.00031492,31]
[400592431,1767736247755,-153.976582,0.00031492,31]
[400592432,1767736247764,-151.0,0.00031506,31]
[400592434,1767736247773,-151.0,0.00031506,31]
[400592436,1767736247783,-151.0,0.00031506,31]
[400592438,1767736247792,-151.0,0.00031506,31]
[400592440,1767736247802,-151.0,0.00031506,31]
[400592442,1767736247812,-151.0,0.00031506,31]
[400592444,1767736247822,-151.0,0.00031506,31]
[400592446,1767736247831,-787.72,0.00031506,31]
[400592449,1767736247841,-1749.78,0.00031506,8]
[400592451,1767736247850,-507.0,0.00031507,14]
[400592453,1767736247860,-10000.0,0.0003154,2]
[400592455,1767736247870,-550.64,0.000316,2]
[400592457,1767736247879,-22465.31,0.000316,2]
[400592459,1767736247888,-151.0,0.000316,31]
[400592460,1767736247896,-284.613576,0.000316,31]
[400592462,1767736247906,-151.0,0.000316,31]
[400592465,1767736247916,-151.0,0.000316,31]
[400592467,1767736247925,-194.712966,0.000316,31]
[400592469,1767736247934,-194.712966,0.000316,31]
[400592471,1767736247947,-194.712966,0.000316,31]
[400592473,1767736247956,-194.712966,0.000316,31]
[400592475,1767736247966,-212.54773642,0.00031622,10]
[400592477,1767736247975,-151.418138,0.00031622,31]
[400592479,1767736247986,-151.0,0.00031622,31]
[400592481,1767736247996,-38000.0,0.00031623,10]
[400592483,1767736248006,-38000.0,0.00031631,10]
[400592485,1767736248014,-151.0,0.00031632,31]
[400592487,1767736248025,-38000.0,0.0003164,10]
[400592489,1767736248034,-166.0,0.00031644,14]
[400592491,1767736248043,-507.0,0.00031644,14]
[400592493,1767736248052,-38000.0,0.00031649,10]
[400592495,1767736248061,-38000.0,0.00031658,10]
[400592497,1767736248071,-151.0,0.00031658,31]
[400592499,1767736248081,-151.0,0.00031658,31]
[400592501,1767736248090,-151.0,0.00031658,31]
[400592503,1767736248100,-151.0,0.00031658,31]
[400592505,1767736248109,-220.68224,0.00031658,31]
[400592507,1767736248119,-151.0,0.00031658,31]
[400592508,1767736248128,-151.0,0.00031658,31]
[400592510,1767736248138,-220.68224,0.00031658,31]
[400592512,1767736248147,-151.0,0.00031658,31]
[400592515,1767736248157,-38000.0,0.00031667,10]
[400592517,1767736248167,-151.0,0.00031667,31]
[400592519,1767736248176,-151.0,0.00031667,31]
[400592521,1767736248187,-151.0,0.00031667,31]
[400592522,1767736248196,-151.0,0.00031667,31]
[400592525,1767736248207,-151.0,0.00031667,31]
[400592527,1767736248216,-170.976512,0.00031667,31]
[400592529,1767736248225,-166.442051,0.00031667,31]
[400592531,1767736248234,-166.442051,0.00031667,31]
[400592532,1767736248244,-166.442051,0.00031667,31]
[400592534,1767736248253,-166.442051,0.00031667,31]
[400592536,1767736248262,-263.925561,0.00031667,31]
[400592538,1767736248272,-5000.0,0.00031667,31]
[400592540,1767736248281,-5000.0,0.00031667,31]
[400592542,1767736248291,-176.786529,0.00031667,31]
[400592544,1767736248301,-5000.0,0.00031667,31]
[400592546,1767736248311,-176.786529,0.00031667,31]
[400592548,1767736248320,-5000.0,0.00031667,31]
[400592550,1767736248330,-176.786529,0.00031667,31]
[400592552,1767736248339,-176.786529,0.00031667,31]
[400592554,1767736248349,-151.0,0.00031667,31]
[400592556,1767736248358,-151.000002,0.00031667,31]
[400592558,1767736248368,-151.0,0.00031667,31]
[400592560,1767736248377,-151.0,0.00031675,31]
[400592562,1767736248386,-273.427612,0.00031675,31]
[400592564,1767736248395,-746.767727,0.00031675,31]
[400592566,1767736248403,-746.767727,0.00031675,31]
[400592568,1767736248412,-746.767727,0.00031675,31]
[400592570,1767736248422,-746.767727,0.00031675,31]
[400592572,1767736248431,-38000.0,0.00031675,10]
[400592573,1767736248440,-675.76318819,0.00031676,2]
[400592575,1767736248449,-151.0,0.00031684,31]
[400592576,1767736248458,-179.970961,0.00031684,31]
[400592578,1767736248468,-151.0,0.00031684,31]
[400592579,1767736248477,-151.0,0.00031684,31]
[400592581,1767736248486,-151.0,0.00031684,31]
[400592582,1767736248495,-500.0,0.00031684,31]
[400592584,1767736248504,-500.0,0.00031684,31]
[400592585,1767736248513,-500.0,0.00031684,31]
[400592587,1767736248522,-500.0,0.00031684,31]
[400592588,1767736248531,-363.862086,0.00031684,31]
[400592590,1767736248541,-363.862086,0.00031684,31]
[400592591,1767736248551,-363.862086,0.00031684,31]
[400592593,1767736248560,-363.862086,0.00031684,31]
[400592594,1767736248570,-151.0,0.00031684,31]
[400592596,1767736248579,-178.486087,0.00031684,31]
[400592597,1767736248589,-151.0,0.00031684,31]
[400592599,1767736248598,-178.486087,0.00031684,31]
[400592600,1767736248607,-178.486087,0.00031684,31]
[400592602,1767736248616,-178.486087,0.00031684,31]
[400592603,1767736248625,-151.0,0.00031684,28]
[400592605,1767736248635,-151.0,0.00031684,28]
[400592607,1767736248644,-38000.0,0.00031684,10]
[400592608,1767736248653,-151.0,0.00031693,31]
[400592610,1767736248663,-151.0,0.00031693,31]
[400592611,1767736248671,-222.545523,0.00031693,31]
[400592613,1767736248680,-151.0,0.00031693,31]
[400592615,1767736248690,-177.372841,0.00031693,31]
[400592616,1767736248699,-409.331105,0.00031693,31]
[400592618,1767736248707,-409.331105,0.00031693,31]
[400592620,1767736248718,-409.331105,0.00031693,31]
[400592621,1767736248727,-409.331105,0.00031693,31]
[400592623,1767736248736,-38000.0,0.00031693,10]
[400592625,1767736248745,-9931.15793158,0.00031699,2]
[400592626,1767736248755,-250.0,0.000317,7]
[400592628,1767736248764,-250.0,0.000317,7]
[400592629,1767736248773,-250.0,0.000317,7]
[400592631,1767736248782,-250.0,0.000317,7]
[400592633,1767736248791,-250.0,0.000317,7]
[400592634,1767736248801,-250.0,0.000317,7]
[400592636,1767736248810,-206.8,0.000317,7]
[400592638,1767736248819,-31810.98,0.000317,7]
[400592639,1767736248828,-38000.0,0.00031702,10]
[400592641,1767736248838,-151.0,0.00031702,31]
[400592643,1767736248847,-151.0,0.00031702,31]
[400592644,1767736248857,-177.092119,0.00031702,31]
[400592646,1767736248865,-151.0,0.00031702,31]
[400592647,1767736248874,-151.0,0.00031702,31]
[400592649,1767736248883,-207.414308,0.00031702,31]
[400592650,1767736248892,-153.79045,0.00031702,31]
[400592652,1767736248901,-151.0,0.00031702,31]
[400592654,1767736248911,-151.0,0.00031702,31]
[400592655,1767736248920,-38000.0,0.00031711,10]
[400592657,1767736248929,-151.0,0.00031711,31]
[400592659,1767736248938,-151.0,0.00031711,31]
[400592660,1767736248951,-151.0,0.00031711,31]
[400592662,1767736248960,-190.765907,0.00031711,31]
[400592664,1767736248970,-194.712966,0.00031711,31]
[400592665,1767736248980,-194.712966,0.00031711,31]
[400592667,1767736248990,-194.712966,0.00031711,31]
[400592669,1767736248999,-194.712966,0.00031711,31]
[400592670,1767736249008,-151.0,0.00031719,31]
[400592672,1767736249020,-38000.0,0.00031719,10]
[400592674,1767736249029,-4034.00350855,0.00031728,32]
[400592675,1767736249038,-38000.0,0.00031728,10]
[400592677,1767736249048,-151.0,0.00031737,31]
[400592678,1767736249057,-151.0,0.00031737,31]
[400592680,1767736249067,-151.0,0.00031737,31]
[400592682,1767736249076,-220.68224,0.00031737,31]
[400592683,1767736249086,-151.0,0.00031737,31]
[400592685,1767736249095,-151.0,0.00031737,31]
[400592687,1767736249104,-220.68224,0.00031737,31]
[400592695,1767736249210,-151.0,0.00031737,31]
[400592696,1767736249222,-38000.0,0.00031737,10]
[400592698,1767736249231,-38000.0,0.00031746,10]
[400592700,1767736249240,-38000.0,0.00031755,10]
[400592701,1767736249249,-151.0,0.00031755,31]
[400592703,1767736249258,-151.0,0.00031755,31]
[400592704,1767736249268,-151.0,0.00031755,31]
[400592706,1767736249277,-151.0,0.00031755,31]
[400592708,1767736249286,-151.0,0.00031755,31]
[400592709,1767736249295,-166.442051,0.00031755,31]
[400592711,1767736249304,-166.442051,0.00031755,31]
[400592713,1767736249313,-166.442051,0.00031755,31]
[400592714,1767736249323,-166.442051,0.00031755,31]
[400592716,1767736249332,-5000.0,0.00031755,31]
[400592718,1767736249341,-5000.0,0.00031755,31]
[400592719,1767736249351,-176.786529,0.00031755,31]
[400592721,1767736249360,-5000.0,0.00031755,31]
[400592722,1767736249369,-176.786529,0.00031755,31]
[400592724,1767736249379,-5000.0,0.00031755,31]
[400592726,1767736249389,-176.786529,0.00031755,31]
[400592727,1767736249398,-176.786529,0.00031755,31]
[400592729,1767736249407,-151.0,0.00031755,31]
[400592731,1767736249416,-151.0,0.00031755,31]
[400592732,1767736249425,-151.0,0.00031763,31]
[400592734,1767736249434,-746.767727,0.00031763,31]
[400592736,1767736249444,-746.767727,0.00031763,31]
[400592737,1767736249453,-746.767727,0.00031763,31]
[400592739,1767736249463,-746.767727,0.00031763,31]
[400592741,1767736249473,-38000.0,0.00031763,10]
[400592742,1767736249482,-151.0,0.00031772,31]
[400592744,1767736249491,-151.0,0.00031772,31]
[400592745,1767736249500,-151.0,0.00031772,31]
[400592747,1767736249509,-159.089641,0.00031772,31]
[400592749,1767736249518,-500.0,0.00031772,31]
[400592750,1767736249526,-500.0,0.00031772,31]
[400592752,1767736249535,-500.0,0.00031772,31]
[400592754,1767736249544,-500.0,0.00031772,31]
[400592755,1767736249553,-363.862086,0.00031772,31]
[400592757,1767736249562,-363.862086,0.00031772,31]
[400592758,1767736249571,-363.862086,0.00031772,31]
[400592760,1767736249580,-363.862091,0.00031772,31]
[400592762,1767736249589,-151.0,0.00031772,31]
[400592763,1767736249599,-178.486087,0.00031772,31]
[400592765,1767736249609,-151.0,0.00031772,31]
[400592767,1767736249618,-178.486087,0.00031772,31]
[400592768,1767736249627,-178.486087,0.00031772,31]
[400592770,1767736249636,-178.486082,0.00031772,31]
[400592772,1767736249646,-151.0,0.00031772,28]
[400592773,1767736249655,-151.0,0.00031772,28]
[400592775,1767736249664,-38000.0,0.00031772,10]
[400592776,1767736249673,-950.0,0.00031781,5]
[400592778,1767736249683,-619.3481601,0.00031781,30]
[400592780,1767736249692,-392.1757426,0.00031781,30]
[400592782,1767736249700,-600.6566519,0.00031781,30]
[400592784,1767736249709,-600.6566519,0.00031781,30]
[400592786,1767736249719,-600.6566519,0.00031781,30]
[400592788,1767736249728,-600.6566519,0.00031781,30]
[400592790,1767736249738,-600.6566519,0.00031781,30]
[400592791,1767736249747,-600.6566519,0.00031781,30]
[400592793,1767736249757,-600.6566519,0.00031781,30]
[400592794,1767736249765,-600.6566519,0.00031781,30]
[400592795,1767736249774,-600.6566519,0.00031781,30]
[400592796,1767736249784,-600.6566519,0.00031781,30]
[400592797,1767736249793,-600.6566519,0.00031781,30]
[400592798,1767736249802,-600.6566519,0.00031781,30]
[400592799,1767736249811,-600.6566519,0.00031781,30]
[400592800,1767736249820,-600.6566519,0.00031781,30]
[400592801,1767736249829,-1201.3133038,0.00031781,30]
[400592802,1767736249838,-600.6566519,0.00031781,30]
[400592803,1767736249847,-600.6566519,0.00031781,30]
[400592804,1767736249856,-600.6566519,0.00031781,30]
[400592805,1767736249865,-600.6566519,0.00031781,30]
[400592806,1767736249874,-600.6566519,0.00031781,30]
[400592807,1767736249884,-600.6566519,0.00031781,30]
[400592808,1767736249893,-38000.0,0.00031781,10]
[400592809,1767736249902,-153.811128,0.00031781,31]
[400592810,1767736249911,-151.0,0.00031781,31]
[400592811,1767736249920,-409.331105,0.00031781,31]
[400592812,1767736249929,-409.331105,0.00031781,31]
[400592813,1767736249940,-409.331105,0.00031781,31]
[400592814,1767736249950,-409.331108,0.00031781,31]
[400592815,1767736249959,-2612.25,0.000318,14]
[400592816,1767736249968,-204.47021326,0.000319,120]
[400592817,1767736249977,-172.33135591,0.000319,120]
[400592818,1767736249986,-194.20318295,0.000319,120]
[400592819,1767736249996,-18905.48192827,0.000319,2]
[400592821,1767736250005,-185.65429275,0.000319,120]
[400592822,1767736250014,-1202.74496589,0.000319,120]
[400592824,1767736250023,-163.65081324,0.000319,120]
[400592825,1767736250032,-200.64404451,0.00032,2]
[400592827,1767736250042,-1041.66666667,0.00032,10]
[400592829,1767736250051,-787.72,0.00032054,32]
[400592831,1767736250060,-2000.0,0.00032134,7]
[400592833,1767736250070,-500.0,0.0003216,2]
[400592835,1767736250080,-2000.0,0.0003217,15]
[400592837,1767736250089,-1050.0,0.00032329,5]
[400592839,1767736250098,-240.04,0.000324,7]
[400592841,1767736250108,-284.75,0.000324,7]
[400592843,1767736250117,-6000.0,0.000324,120]
[400592845,1767736250126,-179.1274507,0.00032438,30]
[400592847,1767736250135,-174.0,0.00032466,53]
[400592849,1767736250144,-413.4277887,0.00032466,30]
[400592851,1767736250153,-193.7123872,0.00032466,30]
[400592853,1767736250162,-193.7123872,0.00032466,30]
[400592855,1767736250171,-193.7123872,0.00032466,30]
[400592857,1767736250180,-193.7123872,0.00032466,30]
[400592859,1767736250189,-193.7123872,0.00032466,30]
[400592861,1767736250199,-193.7123872,0.00032466,30]
[400592863,1767736250208,-193.7123872,0.00032466,30]
[400592866,1767736250217,-193.7123872,0.00032466,30]
[400592868,1767736250228,-745.0,0.00032502,11]
[400592870,1767736250237,-376.8200359,0.00032575,30]
[400592871,1767736250247,-376.8200359,0.00032575,30]
[400592874,1767736250256,-376.8200359,0.00032575,30]
[400592876,1767736250266,-2846.21,0.000326,7]
[400592878,1767736250275,-787.72,0.00032602,33]
[400592879,1767736250284,-300.0,0.00032603,2]
[400592881,1767736250293,-300.0,0.00032603,2]
[400592884,1767736250302,-300.0,0.00032603,2]
[400592885,1767736250312,-300.0,0.00032603,2]
[400592887,1767736250322,-300.0,0.00032603,2]
[400592890,1767736250332,-300.0,0.00032603,2]
[400592891,1767736250341,-300.0,0.00032603,2]
[400592893,1767736250351,-300.0,0.00032603,2]
[400592895,1767736250360,-300.0,0.00032603,2]
[400592898,1767736250369,-300.0,0.00032603,2]
[400592900,1767736250378,-300.0,0.00032603,2]
[400592901,1767736250387,-300.0,0.00032603,2]
[400592903,1767736250399,-300.0,0.00032603,2]
[400592905,1767736250407,-300.0,0.00032603,2]
[400592907,1767736250416,-300.0,0.00032603,2]
[400592909,1767736250425,-300.0,0.00032603,2]
[400592911,1767736250435,-151.0,0.00032603,31]
[400592913,1767736250443,-151.0,0.00032603,31]
[400592915,1767736250452,-151.0,0.00032603,31]
[400592917,1767736250461,-151.0,0.00032603,31]
[400592919,1767736250470,-200.0,0.00032603,7]
[400592921,1767736250479,-200.0,0.00032603,7]
[400592923,1767736250488,-200.0,0.00032603,7]
[400592925,1767736250497,-200.0,0.00032603,7]
[400592927,1767736250506,-200.0,0.00032603,7]
[400592929,1767736250515,-200.0,0.00032603,7]
[400592931,1767736250525,-151.0,0.00032603,31]
[400592933,1767736250533,-151.0,0.00032603,31]
[400592935,1767736250543,-300.0,0.0003263,2]
[400592937,1767736250551,-300.0,0.0003263,2]
[400592939,1767736250560,-300.0,0.0003263,2]
[400592941,1767736250570,-300.0,0.0003263,2]
[400592943,1767736250578,-300.0,0.0003263,2]
[400592945,1767736250588,-300.0,0.0003263,2]
[400592947,1767736250598,-300.0,0.0003263,2]
[400592949,1767736250607,-300.0,0.0003263,2]
[400592951,1767736250616,-300.0,0.0003263,2]
[400592953,1767736250625,-300.0,0.0003263,2]
[400592955,1767736250633,-300.0,0.0003263,2]
[400592957,1767736250642,-300.0,0.0003263,2]
[400592959,1767736250651,-300.0,0.0003263,2]
[400592961,1767736250661,-300.0,0.0003263,2]
[400592963,1767736250670,-300.0,0.0003263,2]
[400592965,1767736250680,-300.0,0.0003263,2]
[400592967,1767736250689,-151.0,0.00032788,31]
[400592969,1767736250698,-254.5,0.00032791,5]
[400592971,1767736250707,-777.0,0.000328,2]
[400592973,1767736250717,-205.8638811,0.00032849,2]
[400592975,1767736250726,-151.0,0.00032876,31]
[400592977,1767736250735,-151.0,0.00032876,31]
[400592979,1767736250745,-194.712966,0.00032876,31]
[400592981,1767736250754,-194.712966,0.00032876,31]
[400592983,1767736250763,-194.712966,0.00032876,31]
[400592985,1767736250772,-194.712966,0.00032876,31]
[400592987,1767736250781,-1319.1,0.00032876,120]
[400592989,1767736250790,-1749.78,0.00032876,120]
[400592991,1767736250800,-12275.25,0.00032877,10]
[400592993,1767736250809,-500.0,0.00032877,5]
[400592995,1767736250818,-1150.0,0.00032877,5]
[400592997,1767736250828,-500.0,0.00032877,7]
[400592999,1767736250837,-500.0,0.00032877,7]
[400593001,1767736250846,-500.0,0.00032877,7]
[400593002,1767736250856,-500.0,0.00032877,7]
[400593004,1767736250865,-500.0,0.00032877,7]
[400593006,1767736250874,-541.79744446,0.00032877,7]
[400593008,1767736250884,-500.0,0.00032877,7]
[400593010,1767736250893,-500.0,0.00032877,7]
[400593012,1767736250902,-500.0,0.00032877,7]
[400593014,1767736250911,-500.0,0.00032877,7]
[400593016,1767736250920,-500.0,0.00032877,7]
[400593018,1767736250930,-1235.12677463,0.00032885,120]
[400593020,1767736250940,-15155.94856204,0.00032898,2]
[400593023,1767736250954,-550.64,0.000329,2]
[400593024,1767736250964,-185.65429275,0.000329,120]
[400593026,1767736250974,-1202.74496589,0.000329,120]
[400593028,1767736250984,-163.65081324,0.000329,120]
[400593030,1767736250994,-152.80579,0.00032904,31]
[400593032,1767736251003,-1319.1,0.00032904,120]
[400593034,1767736251013,-507.0,0.0003291,30]
[400593036,1767736251026,-1319.1,0.00032931,120]
[400593038,1767736251035,-1319.1,0.00032958,120]
[400593040,1767736251046,-1319.1,0.00032986,120]
[400593042,1767736251056,-4181.40895331,0.00033,120]
[400593044,1767736251066,-1760.41887495,0.00033,4]
[400593046,1767736251075,-44357.83912315,0.00033,20]
[400593048,1767736251084,-2612.25,0.00033,30]
[400593050,1767736251093,-1041.66666667,0.00033,10]
[400593052,1767736251103,-2000.0,0.00033008,7]
[400593054,1767736251112,-1319.1,0.00033013,120]
[400593056,1767736251121,-1319.1,0.00033041,120]
[400593058,1767736251131,-1319.1,0.00033068,120]
[400593060,1767736251140,-1319.1,0.00033095,120]
[400593062,1767736251149,-9931.15793158,0.00033099,2]
[400593064,1767736251158,-151.0,0.00033099,31]
[400593066,1767736251167,-151.0,0.00033099,31]
[400593068,1767736251176,-151.0,0.00033099,31]
[400593070,1767736251186,-220.68224,0.00033099,31]
[400593072,1767736251195,-151.0,0.00033099,31]
[400593074,1767736251204,-151.0,0.00033099,31]
[400593076,1767736251214,-220.68224,0.00033099,31]
[400593078,1767736251224,-22465.31,0.000331,14]
[400593080,1767736251234,-1319.1,0.00033123,120]
[400593082,1767736251244,-4391.13530777,0.00033148,34]
[400593084,1767736251253,-1319.1,0.0003315,120]
[400593086,1767736251262,-787.72,0.0003315,34]
[400593088,1767736251271,-1319.1,0.00033178,120]
[400593090,1767736251280,-295.33605295,0.000332,117]
[400593092,1767736251289,-295.33605291,0.000332,117]
[400593094,1767736251299,-295.33605291,0.000332,117]
[400593106,1767736251398,-295.33605291,0.000332,117]
[400593108,1767736251408,-1319.1,0.00033205,120]
[400593110,1767736251417,-521.0,0.00033226,30]
[400593112,1767736251426,-1319.1,0.00033232,120]
[400593114,1767736251436,-500.0,0.0003324,10]
[400593116,1767736251446,-500.0,0.0003324,10]
[400593118,1767736251455,-500.0,0.0003324,30]
[400593120,1767736251464,-500.0,0.0003324,10]
[400593122,1767736251474,-1319.1,0.0003326,120]
[400593124,1767736251483,-153.0,0.0003326,30]
[400593126,1767736251492,-184.3704767,0.0003326,30]
[400593128,1767736251501,-184.3704767,0.0003326,30]
[400593130,1767736251511,-155.6642443,0.0003326,30]
[400593132,1767736251520,-153.0,0.0003326,30]
[400593134,1767736251530,-184.3704767,0.0003326,30]
[400593136,1767736251539,-153.0,0.0003326,30]
[400593138,1767736251548,-153.0,0.0003326,30]
[400593140,1767736251557,-184.3704767,0.0003326,30]
[400593142,1767736251566,-184.3704767,0.0003326,30]
[400593144,1767736251575,-153.0,0.0003326,30]
[400593146,1767736251585,-184.3704767,0.0003326,30]
[400593148,1767736251594,-153.0,0.0003326,30]
[400593150,1767736251604,-184.3704767,0.0003326,30]
[400593152,1767736251614,-184.3704767,0.0003326,30]
[400593154,1767736251623,-153.0,0.0003326,30]
[400593156,1767736251633,-153.0,0.0003326,30]
[400593158,1767736251643,-1319.1,0.00033287,120]
[400593160,1767736251652,-1319.1,0.00033315,120]